bitfinex-derivatives/quotes_SOLF0:USTF0_20250730
["timestamp","ask_amount","ask_price","bid_price","bid_amount"]
[1753914338663,9.55638141,175.5,175.28,109.44093047]
[1753914338664,3.25,175.3,175.28,109.44093047]
[1753914338855,3.25,175.31,175.29,3.21093047]
[1753914339055,3.25,175.32,175.3,3.21093047]
[1753914339762,3.25,175.32,175.3,4.64093047]
[1753914341058,3.21093047,175.39,175.3,3.21093047]
[1753914341258,4.47323578,175.38,175.31,3.21093047]
[1753914341560,3.25,175.36,175.31,3.21093047]
[1753914341861,3.25,175.33,175.31,3.21093047]
[1753914343465,3.25,175.32,175.31,3.21093047]
[1753914346360,3.25,175.32,175.31,8.91503047]
[1753914346772,3.25,175.34,175.31,4.63093047]
[1753914346963,3.21093047,175.41,175.28,104.8]
[1753914346964,3.25,175.42,175.33,4.63093047]
[1753914347266,5.7018,175.38,175.35,3.21093047]
[1753914347469,3.25,175.37,175.35,3.21093047]
[1753914347764,3.25,175.36,175.35,4.63093047]
[1753914347966,3.25,175.36,175.35,10.33373047]
[1753914348359,3.25,175.36,175.35,3.21093047]
[1753914353674,3.25,175.36,175.35,8.91373047]
[1753914354372,3.25,175.36,175.35,3.21093047]
[1753914357477,3.25,175.42,175.35,4.63093047]
[1753914357676,3.25,175.42,175.37,3.21093047]
[1753914358177,5.7017,175.39,175.37,3.21093047]
[1753914358374,3.25,175.38,175.37,3.21093047]
[1753914360583,3.25,175.38,175.36,3.21093047]
[1753914360876,3.28,175.37,175.36,4.63093047]
[1753914361073,3.28,175.37,175.36,3.21093047]
[1753914361883,3.28,175.37,175.36,4.63093047]
[1753914363278,3.28,175.38,175.37,7.1221]
[1753914363584,3.28,175.38,175.35,107.97093047]
[1753914363783,3.28,175.38,175.35,109.39093047]
[1753914363987,3.28,175.38,175.35,115.09353047]
[1753914364485,3.28,175.38,175.37,3.21093047]
[1753914364780,8.981,175.41,175.37,10.33313047]
[1753914364984,3.28,175.4,175.39,3.21093047]
[1753914365580,3.28,175.4,175.37,3.21093047]
[1753914365779,3.28,175.4,175.36,3.21093047]
[1753914366084,3.28,175.4,175.35,107.97093047]
[1753914366283,3.28,175.36,175.35,107.97093047]
[1753914367388,3.28,175.36,175.35,113.67373047]
[1753914369990,3.28,175.36,175.35,107.97093047]
[1753914371185,3.28,175.36,175.35,113.67373047]
[1753914371491,3.28,175.37,175.36,1.42]
[1753914372391,5.7012,175.4,175.35,107.97093047]
[1753914372588,3.28,175.38,175.37,4.63093047]
[1753914373492,3.28,175.38,175.37,10.33313047]
[1753914374084,5.701,175.41,175.37,10.33313047]
[1753914374279,3.28,175.39,175.38,7.1218]
[1753914374485,3.28,175.38,175.37,4.63093047]
[1753914375889,3.28,175.38,175.37,10.33303047]
[1753914376190,3.28,175.38,175.37,3.21093047]
[1753914376591,3.28,175.38,175.37,8.91313047]
[1753914377391,3.28,175.38,175.37,3.21093047]
[1753914377788,3.28,175.38,175.37,8.91313047]
[1753914378089,3.28,175.38,175.37,3.21093047]
[1753914380889,3.28,175.38,175.35,113.67353047]
[1753914381394,3.28,175.38,175.36,5.7024]
[1753914381790,3.28,175.38,175.35,107.97093047]
[1753914381992,3.28,175.38,175.35,109.39093047]
[1753914382296,3.28,175.38,175.35,107.97093047]
[1753914382499,3.28,175.38,175.36,7.1223]
[1753914382793,3.28,175.38,175.35,109.39093047]
[1753914382994,3.28,175.38,175.35,115.09363047]
[1753914383490,3.28,175.38,175.35,107.97093047]
[1753914384592,3.28,175.38,175.35,113.67373047]
[1753914385196,3.28,175.38,175.35,104.76]
[1753914385392,3.28,175.38,175.34,5.703]
[1753914386096,3.28,175.36,175.35,5.7028]
[1753914387496,3.28,175.36,175.34,5.703]
[1753914388889,8.9825,175.36,175.33,115.05433047]
[1753914389095,3.28,175.36,175.33,109.35093047]
[1753914389397,3.26,175.35,175.34,7.1131]
[1753914390199,3.26,175.35,175.33,113.63423047]
[1753914390399,3.26,175.34,175.33,115.04423047]
[1753914391801,3.26,175.34,175.33,104.72]
[1753914392694,8.9631,175.34,175.33,104.72]
[1753914393090,3.26,175.34,175.33,104.72]
[1753914393599,7.75247962,175.34,175.26,386.43093047]
[1753914393800,3.26,175.29,175.27,110.4052]
[1753914393997,3.26,175.29,175.27,104.7]
[1753914395198,3.26,175.28,175.27,106.11]
[1753914396205,3.26,175.28,175.27,111.8151]
[1753914396403,3.26,175.28,175.27,110.4051]
[1753914397203,3.26,175.28,175.27,104.7]
[1753914397403,3.26,175.28,175.21,3.21093047]
[1753914397603,3.26,175.28,175.22,104.72]
[1753914397807,3.26,175.25,175.22,104.72]
[1753914398102,3.26,175.25,175.22,106.13]
[1753914398303,3.26,175.25,175.23,5.7065]
[1753914399300,3.26,175.26,175.22,110.4269]
[1753914399510,3.26,175.26,175.22,104.72]
[1753914399701,3.26,175.26,175.23,1.41]
[1753914401409,3.26,175.26,175.23,7.1166]
[1753914402310,8.9658,175.26,175.22,110.427]
[1753914402504,3.26,175.25,175.22,104.72]
[1753914402706,3.26,175.25,175.22,106.13]
[1753914402901,3.26,175.29,175.23,1.41]
[1753914403308,3.26,175.26,175.22,104.72]
[1753914403511,3.26,175.26,175.22,106.13]
[1753914404304,3.26,175.26,175.22,104.72]
[1753914404614,3.26,175.26,175.23,1.41]
[1753914404809,8.9658,175.26,175.23,1.41]
[1753914405012,5.7058,175.26,175.23,1.41]
[1753914405205,3.26,175.24,175.23,1.41]
[1753914405703,3.26,175.26,175.24,1.41]
[1753914406107,3.26,175.28,175.25,4.62093047]
[1753914406412,3.26,175.31,175.25,4.62093047]
[1753914406612,3.26,175.31,175.25,1.41]
[1753914407313,5.705,175.29,175.25,7.116]
[1753914407507,3.26,175.28,175.25,7.116]
[1753914408210,3.26,175.27,175.24,8.91713047]
[1753914408508,3.26,175.27,175.22,109.34093047]
[1753914408713,5.7056,175.27,175.23,5.7065]
[1753914408915,3.21093047,175.3,175.23,5.7065]
[1753914408916,3.26,175.26,175.23,5.7065]
[1753914409210,3.26,175.25,175.22,5.7069]
[1753914409418,3.26,175.25,175.21,104.72]
[1753914409712,3.26,175.25,175.21,106.13]
[1753914409908,3.26,175.24,175.21,104.72]
[1753914410107,3.26,175.25,175.24,1.41]
[1753914410304,3.26,175.25,175.24,7.1162]
[1753914411007,3.26,175.25,175.23,5.7066]
[1753914411207,5.7053,175.28,175.23,5.7066]
[1753914411515,3.26,175.27,175.23,7.1166]
[1753914411912,3.26,175.27,175.24,5.7062]
[1753914412411,3.26,175.27,175.24,7.1162]
[1753914413305,3.26,175.27,175.25,5.7059]
[1753914413509,3.26,175.27,175.24,1.41]
[1753914414103,3.26,175.27,175.24,7.1161]
[1753914414513,3.26,175.27,175.24,1.41]
[1753914414712,3.26,175.26,175.25,1.43]
[1753914415108,3.26,175.26,175.25,5.7061]
[1753914415309,3.26,175.26,175.23,3.21093047]
[1753914415714,3.26,175.26,175.23,8.91743047]
[1753914416018,3.26,175.26,175.23,4.64093047]
[1753914416315,3.26,175.26,175.24,5.7064]
[1753914416914,3.26,175.26,175.23,10.34753047]
[1753914417312,3.26,175.26,175.23,4.64093047]
[1753914417915,3.26,175.26,175.24,5.7062]
[1753914418115,3.26,175.25,175.24,1.43]
[1753914418518,3.26,175.25,175.24,7.1364]
[1753914419020,3.09,175.29,175.24,1.43]
[1753914419419,3.09,175.29,175.25,1.43]
[1753914419619,3.09,175.28,175.25,7.1358]
[1753914420023,3.09,175.28,175.25,1.43]
[1753914420221,3.09,175.28,175.26,1.43]
[1753914420418,3.09,175.28,175.27,1.43]
[1753914420618,3.21093047,175.34,175.27,1.43]
[1753914420818,3.21093047,175.34,175.27,3.21093047]
[1753914421019,3.09,175.33,175.29,1.43]
[1753914421220,8.7935,175.33,175.29,7.1346]
[1753914421426,3.09,175.32,175.29,7.1346]
[1753914421825,3.09,175.32,175.29,5.7046]
[1753914422721,3.21093047,175.36,175.28,5.705]
[1753914422926,3.09,175.3,175.28,5.705]
[1753914423320,3.21093047,175.32,175.25,3.21093047]
[1753914423525,3.09,175.29,175.21,4.64093047]
[1753914423726,3.09,175.27,175.21,1.43]
[1753914424024,3.09,175.27,175.2,1.43]
[1753914424228,3.21093047,175.26,175.18,107.93093047]
[1753914424430,3.09,175.21,175.18,109.36093047]
[1753914424825,3.21093047,175.26,175.18,109.36093047]
[1753914424826,3.09,175.2,175.18,109.36093047]
[1753914425131,3.09,175.2,175.19,7.138]
[1753914425531,3.09,175.2,175.19,5.708]
[1753914425925,5.7065,175.24,175.2,5.7075]
[1753914426433,3.09,175.21,175.2,7.1375]
[1753914427037,3.09,175.26,175.2,3.21093047]
[1753914427223,3.09,175.26,175.22,1.43]
[1753914427429,3.09,175.26,175.2,4.64093047]
[1753914427729,3.09,175.24,175.21,5.7072]
[1753914427932,3.09,175.24,175.21,7.1372]
[1753914428136,3.09,175.23,175.21,1.43]
[1753914428741,3.09,175.23,175.22,1.43]
[1753914429035,3.09,175.26,175.23,1.43]
[1753914429235,3.09,175.26,175.2,4.64093047]
[1753914429437,5.7059,175.26,175.22,5.707]
[1753914429638,5.7059,175.26,175.21,1.43]
[1753914429639,3.09,175.25,175.21,1.43]
[1753914429836,3.09,175.25,175.22,1.43]
[1753914430040,5.7055,175.27,175.23,7.1365]
[1753914430232,3.09,175.24,175.23,7.1365]
[1753914431133,3.09,175.24,175.23,5.7065]
[1753914431633,104.7,175.37,175.23,5.7065]
[1753914431634,3.09,175.29,175.23,1.43]
[1753914431832,3.09,175.29,175.26,1.43]
[1753914432338,3.09,175.29,175.26,7.1355]
[1753914432743,3.09,175.29,175.26,5.7055]
[1753914433830,3.09,175.29,175.27,5.7054]
[1753914434036,3.09,175.29,175.27,8.91633047]
[1753914434236,3.09,175.28,175.27,8.91633047]
[1753914434431,3.09,175.28,175.27,3.21093047]
[1753914436536,3.09,175.28,175.25,3.21093047]
[1753914436931,5.7052,175.28,175.23,113.61753047]
[1753914437144,3.09,175.27,175.23,113.61753047]
[1753914437937,8.7956,175.27,175.23,115.04753047]
[1753914438237,3.09,175.26,175.23,115.04753047]
[1753914439644,3.09,175.24,175.23,104.7]
[1753914440544,8.7964,175.24,175.19,4.64093047]
[1753914440745,3.09,175.23,175.2,1.43]
[1753914440944,8.7968,175.23,175.2,7.1377]
[1753914441142,3.09,175.22,175.2,5.7077]
[1753914443445,3.21093047,175.27,175.18,5.7082]
[1753914443751,3.09,175.21,175.16,384.63]
[1753914444051,8.7976,175.21,175.17,5.7087]
[1753914444348,3.09,175.2,175.17,5.7087]
[1753914445348,3.09,175.2,175.17,7.1387]
[1753914445852,3.09,175.2,175.18,5.7083]
[1753914449153,5.7072,175.22,175.16,487.88]
[1753914449154,3.31,175.22,175.21,1.43]
[1753914449353,3.31,175.22,175.21,4.64093047]
[1753914449856,3.31,175.22,175.21,8.91833047]
[1753914450061,3.31,175.22,175.2,104.7]
[1753914450355,3.31,175.22,175.2,107.91093047]
[1753914450555,3.31,175.26,175.2,109.34093047]
[1753914450752,3.31,175.26,175.22,3.21093047]
[1753914450947,5.7056,175.27,175.23,7.1366]
[1753914451149,3.31,175.25,175.23,7.1366]
[1753914451348,3.31,175.24,175.23,7.1366]
[1753914452250,3.31,175.24,175.23,5.7066]
[1753914453258,3.31,175.24,175.22,4.64093047]
[1753914453447,3.31,175.24,175.17,3.21093047]
[1753914453649,3.31,175.23,175.17,107.89093047]
[1753914453848,3.31,175.23,175.17,109.32093047]
[1753914454255,3.31,175.22,175.19,5.7078]
[1753914454456,3.31,175.22,175.19,7.1378]
[1753914455053,3.31,175.24,175.19,4.64093047]
[1753914455356,3.31,175.23,175.19,3.21093047]
[1753914455558,3.31,175.23,175.2,5.7074]
[1753914456360,3.31,175.23,175.2,7.1374]
[1753914456556,3.31,175.23,175.21,5.7073]
[1753914457557,3.31,175.22,175.21,5.7073]
[1753914459563,3.31,175.21,175.2,5.7076]
[1753914462664,3.31,175.21,175.19,8.91893047]
[1753914462863,3.31,175.21,175.17,109.32093047]
[1753914463259,3.31,175.21,175.18,5.7081]
[1753914464058,3.31,175.21,175.19,5.708]
[1753914465264,3.31,175.21,175.18,5.7083]
[1753914466057,9.0174,175.21,175.17,113.59943047]
[1753914466666,3.31,175.2,175.17,113.59943047]
[1753914467264,3.31,175.2,175.18,5.7082]
[1753914467664,3.31,175.2,175.17,113.59953047]
[1753914467957,3.31,175.2,175.17,104.68]
[1753914468163,5.708,175.19,175.17,104.68]
[1753914468359,3.31,175.18,175.17,104.68]
[1753914470668,3.31,175.18,175.14,104.68]
[1753914470966,3.31,175.17,175.14,104.68]
[1753914471268,3.31,175.17,175.14,106.11]
[1753914471861,3.31,175.17,175.15,5.709]
[1753914474267,3.31,175.17,175.14,110.3895]
[1753914474969,3.31,175.17,175.14,104.68]
[1753914475867,3.31,175.17,175.14,111.8196]
[1753914477475,9.0187,175.17,175.14,110.3896]
[1753914477670,3.31,175.16,175.14,104.68]
[1753914478764,3.31,175.16,175.14,110.3896]
[1753914479669,3.31,175.16,175.14,104.68]
[1753914479870,3.25,175.15,175.14,104.68]
[1753914480070,3.25,175.15,175.12,5.7101]
[1753914480274,3.25,175.15,175.12,110.3901]
[1753914480473,3.25,175.18,175.12,106.11]
[1753914480675,3.25,175.18,175.13,1.43]
[1753914481179,11.4107,175.28,175.13,1.43]
[1753914481180,3.25,175.17,175.14,5.7094]
[1753914481675,3.25,175.17,175.14,7.1394]
[1753914482273,8.9587,175.17,175.14,7.1394]
[1753914482477,3.25,175.17,175.14,7.1394]
[1753914483373,3.21093047,175.19,175.12,4.64093047]
[1753914483575,3.25,175.16,175.1,4.64093047]
[1753914484375,3.25,175.15,175.12,5.7101]
[1753914484572,3.25,175.15,175.12,7.1401]
[1753914485778,3.25,175.15,175.13,5.7099]
[1753914486278,3.25,175.15,175.09,106.11]
[1753914487181,3.25,175.15,175.1,1.43]
[1753914487682,3.25,175.14,175.11,5.7104]
[1753914487870,3.25,175.14,175.1,1.43]
[1753914488269,3.25,175.14,175.11,7.1404]
[1753914488874,3.25,175.14,175.12,5.7102]
[1753914489178,3.25,175.14,175.11,1.43]
[1753914489578,5.7097,175.14,175.11,5.7105]
[1753914489772,3.25,175.13,175.11,5.7105]
[1753914489976,3.25,175.12,175.11,1.43]
[1753914490283,3.25,175.14,175.11,1.43]
[1753914490472,3.25,175.14,175.13,1.43]
[1753914490875,3.25,175.16,175.13,1.43]
[1753914491086,3.25,175.15,175.14,1.43]
[1753914491979,3.25,175.15,175.14,7.1394]
[1753914493177,3.25,175.19,175.16,7.1389]
[1753914494074,3.25,175.19,175.14,1.43]
[1753914494276,3.25,175.19,175.13,3.21093047]
[1753914494675,3.25,175.19,175.15,1.43]
[1753914495382,8.9581,175.19,175.15,7.1391]
[1753914495584,8.9581,175.19,175.13,3.21093047]
[1753914495585,3.25,175.18,175.13,3.21093047]
[1753914495880,23.47545094,175.35,175.18,7.1381]
[1753914495881,3.25,175.19,175.18,7.1381]
[1753914496077,3.25,175.19,175.17,3.21093047]
[1753914496280,3.25,175.19,175.13,4.64093047]
[1753914496480,5.7085,175.18,175.14,5.7094]
[1753914496676,3.25,175.17,175.14,5.7094]
[1753914497272,3.25,175.16,175.13,5.7099]
[1753914498673,3.25,175.16,175.13,7.1399]
[1753914498877,3.25,175.15,175.13,7.1399]
[1753914499078,3.25,175.15,175.14,5.7096]
[1753914499281,3.25,175.15,175.13,1.43]
[1753914499584,3.25,175.15,175.14,1.43]
[1753914499883,3.21093047,175.19,175.11,3.21093047]
[1753914500077,3.25,175.14,175.13,1.43]
[1753914501383,3.25,175.14,175.13,7.1398]
[1753914502779,11.4111,175.27,175.15,1.43]
[1753914502780,3.25,175.16,175.15,1.43]
[1753914502977,3.25,175.16,175.15,4.64093047]
[1753914503884,3.25,175.16,175.15,10.35023047]
[1753914504073,3.25,175.16,175.15,4.64093047]
[1753914504273,3.25,175.16,175.15,3.21093047]
[1753914505585,3.25,175.16,175.14,5.7095]
[1753914506083,3.25,175.15,175.14,5.7095]
[1753914506283,3.25,175.15,175.14,7.1395]
[1753914508483,3.25,175.17,175.15,7.1391]
[1753914508683,3.25,175.16,175.15,1.43]
[1753914509683,3.32,175.15,175.12,3.21093047]
[1753914510887,3.32,175.15,175.12,8.92103047]
[1753914511088,3.32,175.15,175.12,3.21093047]
[1753914511590,3.32,175.15,175.12,4.63093047]
[1753914512591,3.32,175.14,175.13,7.13]
[1753914513781,3.32,175.14,175.13,5.71]
[1753914514786,3.32,175.14,175.12,3.21093047]
[1753914514787,3.32,175.19,175.14,1.42]
[1753914514991,3.32,175.24,175.17,1.42]
[1753914515201,4.50047746,175.23,175.18,4.63093047]
[1753914515405,3.32,175.22,175.19,1.42]
[1753914515896,3.32,175.26,175.19,1.42]
[1753914516097,3.32,175.24,175.19,1.42]
[1753914516301,3.32,175.22,175.2,5.7075]
[1753914517295,3.32,175.22,175.15,1.42]
[1753914517502,3.32,175.22,175.16,3.21093047]
[1753914517800,5.7076,175.21,175.16,8.91973047]
[1753914517999,3.32,175.2,175.16,8.91973047]
[1753914519001,3.32,175.2,175.17,5.7087]
[1753914519303,3.32,175.2,175.16,4.63093047]
[1753914519804,3.32,175.2,175.18,5.7081]
[1753914521704,3.32,175.2,175.17,5.7085]
[1753914522406,3.32,175.21,175.18,8.91923047]
[1753914522711,3.32,175.21,175.18,4.63093047]
[1753914522901,3.32,175.2,175.19,7.1278]
[1753914525709,3.32,175.23,175.2,5.7074]
[1753914526008,3.32,175.22,175.21,1.42]
[1753914526208,3.32,175.21,175.2,7.1274]
[1753914526408,3.32,175.21,175.2,5.7074]
[1753914527112,3.32,175.3,175.21,1.42]
[1753914527310,3.32,175.28,175.23,3.21093047]
[1753914527510,5.7054,175.27,175.23,10.33743047]
[1753914527711,124.0,175.35,175.25,3.21093047]
[1753914527912,3.21093047,175.33,175.25,3.21093047]
[1753914528107,5.7045,175.3,175.25,4.63093047]
[1753914528301,3.32,175.34,175.27,3.21093047]
[1753914528507,3.32,175.32,175.27,3.21093047]
[1753914528707,3.32,175.3,175.29,3.21093047]
[1753914528903,3.32,175.3,175.29,4.63093047]
[1753914529323,3.32,175.3,175.29,10.33563047]
[1753914530608,3.32,175.3,175.29,3.21093047]
[1753914535814,3.32,175.34,175.27,3.21093047]
[1753914536114,3.32,175.31,175.27,3.21093047]
[1753914536313,3.32,175.34,175.29,3.21093047]
[1753914536513,3.32,175.34,175.3,1.42]
[1753914536713,3.32,175.34,175.29,4.63093047]
[1753914536913,3.32,175.34,175.31,3.21093047]
[1753914537115,3.32,175.33,175.31,1.42]
[1753914537315,3.32,175.33,175.32,3.21093047]
[1753914537511,3.32,175.33,175.32,8.91443047]
[1753914537713,3.32,175.35,175.32,3.21093047]
[1753914540211,9.023,175.35,175.32,3.21093047]
[1753914540411,3.2,175.33,175.32,3.21093047]
[1753914541520,3.2,175.33,175.32,4.63093047]
[1753914542808,3.2,175.33,175.32,10.33473047]
[1753914543112,3.2,175.33,175.32,3.21093047]
[1753914543320,3.2,175.35,175.32,10.33443047]
[1753914543615,3.2,175.33,175.3,3.21093047]
[1753914544811,3.2,175.32,175.3,3.21093047]
[1753914545624,3.2,175.32,175.28,8.91583047]
[1753914546611,3.2,175.37,175.3,3.21093047]
[1753914546816,3.2,175.35,175.32,3.21093047]
[1753914547012,3.2,175.35,175.31,5.704]
[1753914547216,3.2,175.35,175.3,3.21093047]
[1753914547416,3.2,175.34,175.3,3.21093047]
[1753914547617,3.2,175.34,175.32,5.7037]
[1753914548720,3.2,175.33,175.32,5.7037]
[1753914548921,3.2,175.33,175.32,3.21093047]
[1753914550418,386.79093047,175.41,175.32,4.63093047]
[1753914550622,3.2,175.4,175.32,4.63093047]
[1753914552117,5.702,175.38,175.33,5.7032]
[1753914552423,3.2,175.37,175.33,1.41]
[1753914552625,3.2,175.37,175.34,8.91383047]
[1753914558926,3.2,175.36,175.34,3.21093047]
[1753914559322,8.9025,175.36,175.34,3.21093047]
[1753914559521,3.2,175.35,175.34,3.21093047]
[1753914560318,3.2,175.35,175.33,7.1134]
[1753914560721,3.2,175.35,175.31,3.21093047]
[1753914560925,3.2,175.35,175.3,1.41]
[1753914560926,3.2,175.35,175.3,3.21093047]
[1753914561323,5.7037,175.33,175.3,8.91513047]
[1753914561529,3.2,175.31,175.3,10.32513047]
[1753914562624,5.7033,175.34,175.3,8.91513047]
[1753914562823,3.2,175.32,175.31,1.41]
[1753914563726,3.2,175.34,175.32,1.41]
[1753914563926,3.21093047,175.4,175.32,1.41]
[1753914563927,3.2,175.39,175.32,3.21093047]
[1753914564127,3.2,175.37,175.32,3.21093047]
[1753914564531,5.7034,175.34,175.32,3.21093047]
[1753914564828,3.2,175.33,175.3,10.32513047]
[1753914565220,3.2,175.33,175.3,4.62093047]
[1753914565731,8.9038,175.33,175.3,4.62093047]
[1753914565933,3.2,175.32,175.3,8.91533047]
[1753914566127,3.2,175.31,175.3,10.32533047]
[1753914568437,3.21093047,175.38,175.29,7.1146]
[1753914568632,3.2,175.3,175.29,10.32553047]
[1753914570538,3.1,175.31,175.3,7.1342]
[1753914571037,3.1,175.34,175.3,7.1342]
[1753914571337,3.1,175.34,175.31,5.7041]
[1753914572142,3.1,175.34,175.32,5.7038]
[1753914572835,3.1,175.34,175.31,4.64093047]
[1753914573038,3.1,175.37,175.32,1.43]
[1753914573235,3.1,175.35,175.32,1.43]
[1753914573433,3.1,175.35,175.24,1.43]
[1753914573734,3.21093047,175.41,175.25,4.64093047]
[1753914573735,3.1,175.33,175.25,4.64093047]
[1753914573935,3.1,175.31,175.25,4.64093047]
[1753914574740,3.1,175.31,175.28,5.7049]
[1753914575440,3.1,175.33,175.28,1.43]
[1753914575737,3.1,175.33,175.29,1.43]
[1753914575937,3.1,175.33,175.29,5.7045]
[1753914576537,3.1,175.33,175.29,1.43]
[1753914576732,3.1,175.33,175.3,1.43]
[1753914577240,3.1,175.33,175.31,5.7038]
[1753914578741,3.1,175.33,175.32,5.7038]
[1753914583141,3.1,175.33,175.29,3.21093047]
[1753914584243,3.1,175.33,175.3,5.7044]
[1753914585737,3.1,175.33,175.31,5.7041]
[1753914586139,5.7036,175.33,175.29,3.21093047]
[1753914586448,3.1,175.32,175.29,3.21093047]
[1753914587238,3.1,175.33,175.3,1.43]
[1753914587440,5.7036,175.33,175.3,5.7043]
[1753914587639,3.1,175.35,175.29,3.21093047]
[1753914587843,3.1,175.33,175.29,3.21093047]
[1753914588043,3.1,175.32,175.29,3.21093047]
[1753914588243,3.1,175.32,175.29,4.64093047]
[1753914588542,3.1,175.31,175.3,1.43]
[1753914588953,3.1,175.31,175.29,3.21093047]
[1753914589150,3.1,175.3,175.29,10.34573047]
[1753914591954,3.1,175.3,175.29,8.91573047]
[1753914592859,3.1,175.3,175.29,5.7048]
[1753914593152,3.1,175.3,175.27,4.64093047]
[1753914593852,3.1,175.3,175.28,5.7049]
[1753914595255,3.1,175.3,175.29,5.7048]
[1753914597354,3.21093047,175.36,175.27,3.21093047]
[1753914597557,3.1,175.31,175.23,4.64093047]
[1753914597755,3.1,175.29,175.23,3.21093047]
[1753914597951,3.1,175.29,175.26,5.7057]
[1753914598256,3.1,175.29,175.23,4.64093047]
[1753914598653,3.1,175.28,175.25,5.7059]
[1753914600357,3.1,175.28,175.24,5.7063]
[1753914600659,3.1,175.28,175.22,4.63093047]
[1753914600863,3.1,175.28,175.24,5.7061]
[1753914601263,3.31,175.26,175.1,11.4213]
[1753914601465,3.31,175.26,175.05,3.21093047]
[1753914601466,3.31,175.26,175.23,3.21]
[1753914601660,3.31,175.33,175.26,3.21]
[1753914601964,3.31,175.34,175.31,3.21]
[1753914602362,3.21093047,175.36,175.28,3.21093047]
[1753914602566,3.31,175.34,175.29,3.21]
[1753914602861,3.31,175.33,175.29,8.9147]
[1753914603066,3.31,175.33,175.3,3.21]
[1753914603763,3.31,175.32,175.3,3.21]
[1753914604656,3.31,175.31,175.3,3.21]
[1753914604855,3.31,175.31,175.28,3.21093047]
[1753914605062,3.31,175.31,175.28,3.21]
[1753914606261,3.31,175.31,175.29,3.21]
[1753914606464,9.0142,175.31,175.29,3.21]
[1753914606666,3.31,175.3,175.29,3.21]
[1753914608063,3.31,175.31,175.3,3.21]
[1753914609961,3.31,175.34,175.3,6.42093047]
[1753914610166,3.31,175.32,175.31,3.21]
[1753914610862,3.31,175.34,175.31,3.21]
[1753914611068,3.31,175.34,175.32,3.21]
[1753914611862,3.31,175.33,175.32,3.21]
[1753914612564,3.31,175.33,175.28,3.21093047]
[1753914612770,3.31,175.35,175.29,3.21]
[1753914612971,5.7035,175.33,175.29,3.21]
[1753914613168,3.21093047,175.34,175.29,3.21]
[1753914613464,7.79507725,175.33,175.27,3.21]
[1753914613665,5.7044,175.31,175.27,5.7054]
[1753914613866,5.7044,175.31,175.28,3.21]
[1753914613867,3.31,175.29,175.28,3.21]
[1753914614067,3.31,175.29,175.28,8.9151]
[1753914614266,3.31,175.3,175.29,3.21]
[1753914619973,9.0144,175.31,175.29,3.21]
[1753914620174,5.7044,175.31,175.27,5.7054]
[1753914620672,9.0144,175.31,175.27,5.7054]
[1753914620976,9.0144,175.31,175.28,3.21]
[1753914621368,3.31,175.31,175.28,3.21]